[Event "Live Chess"]
[Site "Chess.com"]
[Date "2023.05.20"]
[Round "-"]
[White "elizaveta_frundina"]
[Black "olahgito"]
[Result "1-0"]
[WhiteElo "1565"]
[BlackElo "728"]
[TimeControl "300"]
[EndTime "12:10:41 PDT"]
[Termination "elizaveta_frundina won by checkmate"]

1. e4 {[%clk 0:04:55.7]} 1... d5 {[%clk 0:04:59.3]} 2. exd5 {[%clk 0:04:54.5]}
2... Qxd5 {[%clk 0:04:59.2]} 3. Nc3 {[%clk 0:04:53.9]} 3... Qd8 {[%clk
0:04:59.1]} 4. d4 {[%clk 0:04:53.3]} 4... Nf6 {[%clk 0:04:56.1]} 5. Nf3 {[%clk
0:04:51.9]} 5... Bg4 {[%clk 0:04:53]} 6. Be3 {[%clk 0:04:49.9]} 6... Nc6 {[%clk
0:04:41.4]} 7. Bb5 {[%clk 0:04:48.3]} 7... Qd7 {[%clk 0:04:37.6]} 8. d5 {[%clk
0:04:41.5]} 8... a6 {[%clk 0:04:34.1]} 9. dxc6 {[%clk 0:04:39.2]} 9... Qxd1+
{[%clk 0:04:29.4]} 10. Rxd1 {[%clk 0:04:35.1]} 10... axb5 {[%clk 0:04:28.5]} 11.
Nxb5 {[%clk 0:04:30.5]} 11... bxc6 {[%clk 0:04:26.8]} 12. Nxc7# {[%clk
0:04:29.5]} 1-0

[Event "Live Chess"]
[Site "Chess.com"]
[Date "2023.05.20"]
[Round "-"]
[White "TobyQuaite"]
[Black "Richardallis"]
[Result "0-1"]
[WhiteElo "1679"]
[BlackElo "1805"]
[TimeControl "300"]
[EndTime "12:10:43 PDT"]
[Termination "Richardallis won by resignation"]

1. e4 {[%clk 0:04:56]} 1... d5 {[%clk 0:04:58.7]} 2. exd5 {[%clk 0:04:55]} 2...
Nf6 {[%clk 0:04:58.1]} 3. c4 {[%clk 0:04:52.2]} 3... c6 {[%clk 0:04:56.8]} 4.
dxc6 {[%clk 0:04:51.8]} 4... Nxc6 {[%clk 0:04:56.3]} 5. Nf3 {[%clk 0:04:50.4]}
5... e5 {[%clk 0:04:55.6]} 6. d3 {[%clk 0:04:48.2]} 6... Bg4 {[%clk 0:04:54.8]}
7. Bg5 {[%clk 0:04:47.3]} 7... Bc5 {[%clk 0:04:51.3]} 8. h3 {[%clk 0:04:41.7]}
8... Bxf3 {[%clk 0:04:49.7]} 9. Qxf3 {[%clk 0:04:41.6]} 9... Nd4 {[%clk
0:04:47.1]} 10. Qd1 {[%clk 0:04:40.7]} 10... O-O {[%clk 0:04:45.8]} 11. Nd2
{[%clk 0:04:35.2]} 11... Qb6 {[%clk 0:04:42.8]} 12. Bxf6 {[%clk 0:04:27.1]}
12... Qxf6 {[%clk 0:04:41.3]} 13. Ne4 {[%clk 0:04:24.3]} 13... Qb6 {[%clk
0:04:39.7]} 14. Nxc5 {[%clk 0:04:21.4]} 14... Qxc5 {[%clk 0:04:38.7]} 15. Be2
{[%clk 0:04:17.4]} 15... Qb4+ {[%clk 0:04:37.5]} 16. Qd2 {[%clk 0:04:09.9]}
16... Nc2+ {[%clk 0:04:36.1]} 17. Kd1 {[%clk 0:04:05]} 17... Qxd2+ {[%clk
0:04:35.4]} 18. Kxd2 {[%clk 0:04:04.9]} 18... Nxa1 {[%clk 0:04:34.7]} 19. Rxa1
{[%clk 0:04:04.8]} 19... Rfd8 {[%clk 0:04:32.7]} 20. f3 {[%clk 0:04:03.2]} 20...
f5 {[%clk 0:04:30.8]} 21. b4 {[%clk 0:03:56.6]} 21... e4 {[%clk 0:04:29.1]} 22.
fxe4 {[%clk 0:03:55.6]} 22... fxe4 {[%clk 0:04:28.4]} 23. Kc3 {[%clk 0:03:51.7]}
23... exd3 {[%clk 0:04:26.8]} 24. Bxd3 {[%clk 0:03:51.6]} 24... Rac8 {[%clk
0:04:24.1]} 25. Re1 {[%clk 0:03:47.2]} 25... Re8 {[%clk 0:04:22.7]} 26. Rf1
{[%clk 0:03:39.3]} 26... Rf8 {[%clk 0:04:21.7]} 27. Re1 {[%clk 0:03:30.6]} 27...
Rce8 {[%clk 0:04:20.8]} 28. Rf1 {[%clk 0:03:27.9]} 28... Rxf1 {[%clk 0:04:18.7]}
29. Bxf1 {[%clk 0:03:27.8]} 29... Re3+ {[%clk 0:04:15.7]} 30. Bd3 {[%clk
0:03:26.1]} 30... Rg3 {[%clk 0:04:14.5]} 31. Kb3 {[%clk 0:03:13.7]} 31... Rxd3+
{[%clk 0:04:12.5]} 0-1

[Event "Live Chess"]
[Site "Chess.com"]
[Date "2023.05.20"]
[Round "-"]
[White "WilliamofOrange16th"]
[Black "manthanit"]
[Result "1-0"]
[WhiteElo "1865"]
[BlackElo "945"]
[TimeControl "300"]
[EndTime "12:10:48 PDT"]
[Termination "WilliamofOrange16th won by checkmate"]

1. e4 {[%clk 0:04:57.2]} 1... g6 {[%clk 0:04:58.3]} 2. f4 {[%clk 0:04:53]} 2...
Bg7 {[%clk 0:04:57.8]} 3. Nf3 {[%clk 0:04:52.8]} 3... Nf6 {[%clk 0:04:55.9]} 4.
e5 {[%clk 0:04:50.9]} 4... Ne4 {[%clk 0:04:54.7]} 5. d3 {[%clk 0:04:48.4]} 5...
Nc5 {[%clk 0:04:52.9]} 6. Nc3 {[%clk 0:04:46]} 6... d6 {[%clk 0:04:51.8]} 7. d4
{[%clk 0:04:44.9]} 7... Nca6 {[%clk 0:04:41.6]} 8. Be3 {[%clk 0:04:42.6]} 8...
dxe5 {[%clk 0:04:40]} 9. dxe5 {[%clk 0:04:42.5]} 9... Bf5 {[%clk 0:04:30.1]} 10.
Qxd8+ {[%clk 0:04:39.6]} 10... Kxd8 {[%clk 0:04:28.4]} 11. O-O-O+ {[%clk
0:04:39.2]} 11... Nd7 {[%clk 0:04:26.5]} 12. h3 {[%clk 0:04:34.3]} 12... Nb4
{[%clk 0:04:25.8]} 13. Bd3 {[%clk 0:04:28.6]} 13... Nxd3+ {[%clk 0:04:05.2]} 14.
cxd3 {[%clk 0:04:28.5]} 14... c6 {[%clk 0:04:02.2]} 15. g4 {[%clk 0:04:27.5]}
15... Be6 {[%clk 0:04:00.7]} 16. Nd4 {[%clk 0:04:20.4]} 16... Bd5 {[%clk
0:03:57.7]} 17. Nxd5 {[%clk 0:04:19.2]} 17... cxd5 {[%clk 0:03:57.1]} 18. Kb1
{[%clk 0:04:14]} 18... e6 {[%clk 0:03:49.7]} 19. Rc1 {[%clk 0:04:06.1]} 19...
Ke7 {[%clk 0:03:48.6]} 20. Nb5 {[%clk 0:04:04.2]} 20... a6 {[%clk 0:03:40.7]}
21. Nd6 {[%clk 0:04:02.2]} 21... Rab8 {[%clk 0:03:14.8]} 22. Rc7 {[%clk
0:03:52.5]} 22... b6 {[%clk 0:03:07.2]} 23. Rhc1 {[%clk 0:03:50.6]} 23... f6
{[%clk 0:02:58.1]} 24. d4 {[%clk 0:03:43.3]} 24... fxe5 {[%clk 0:02:54.9]} 25.
fxe5 {[%clk 0:03:33.3]} 25... Rhf8 {[%clk 0:02:37.6]} 26. Bg5+ {[%clk
0:03:31.8]} 26... Bf6 {[%clk 0:02:20]} 27. exf6+ {[%clk 0:03:15.7]} 27... Kxd6
{[%clk 0:02:15.8]} 28. R1c6# {[%clk 0:03:14.1]} 1-0

[Event "Live Chess"]
[Site "Chess.com"]
[Date "2023.05.20"]
[Round "-"]
[White "PiotrD11"]
[Black "chessleanstrategist"]
[Result "1-0"]
[WhiteElo "1352"]
[BlackElo "400"]
[TimeControl "300"]
[EndTime "12:10:59 PDT"]
[Termination "PiotrD11 won on time"]

1. e4 {[%clk 0:04:57.4]} 1... d6 {[%clk 0:04:58.7]} 2. d4 {[%clk 0:04:56.3]}
2... Nf6 {[%clk 0:04:55.5]} 3. Nc3 {[%clk 0:04:52]} 3... g6 {[%clk 0:04:43.3]}
4. Nf3 {[%clk 0:04:49.2]} 4... Bg7 {[%clk 0:04:41.4]} 5. Be3 {[%clk 0:04:45.9]}
5... O-O {[%clk 0:04:29.1]} 6. Be2 {[%clk 0:04:42.9]} 6... e5 {[%clk 0:04:11.4]}
7. d5 {[%clk 0:04:19.7]} 7... c6 {[%clk 0:03:42.5]} 8. O-O {[%clk 0:04:16.3]}
8... cxd5 {[%clk 0:03:39.3]} 9. Nxd5 {[%clk 0:04:00.8]} 9... Nxd5 {[%clk
0:03:34.2]} 10. exd5 {[%clk 0:03:56.8]} 10... e4 {[%clk 0:03:29.5]} 11. Nd4
{[%clk 0:03:50]} 11... f5 {[%clk 0:02:52.4]} 12. c3 {[%clk 0:03:42.5]} 12... Na6
{[%clk 0:02:38.3]} 13. Qd2 {[%clk 0:03:40]} 13... Nc5 {[%clk 0:02:34.5]} 14.
Rad1 {[%clk 0:03:33.3]} 14... Bd7 {[%clk 0:02:28.4]} 15. b4 {[%clk 0:03:28.6]}
15... Na4 {[%clk 0:02:16.2]} 16. Bh6 {[%clk 0:03:17.1]} 16... Qc7 {[%clk
0:02:02.2]} 17. Bxg7 {[%clk 0:03:13.7]} 17... Kxg7 {[%clk 0:02:00.2]} 18. Ne6+
{[%clk 0:03:09.6]} 18... Bxe6 {[%clk 0:01:57.7]} 19. dxe6 {[%clk 0:03:08.9]}
19... Qxc3 {[%clk 0:01:49.2]} 20. Qxd6 {[%clk 0:02:58.9]} 20... Qc6 {[%clk
0:01:25.1]} 21. Qe5+ {[%clk 0:02:30.9]} 21... Rf6 {[%clk 0:01:10.8]} 22. e7
{[%clk 0:02:09.3]} 22... Qe8 {[%clk 0:00:47.7]} 23. Bb5 {[%clk 0:02:00.3]} 23...
Rd8 {[%clk 0:00:11.3]} 24. Rxd8 {[%clk 0:01:47.5]} 1-0

[Event "Live Chess"]
[Site "Chess.com"]
[Date "2023.05.20"]
[Round "-"]
[White "Conradical12"]
[Black "TheSmoulderingMaster"]
[Result "1-0"]
[WhiteElo "1567"]
[BlackElo "1723"]
[TimeControl "300"]
[EndTime "12:11:20 PDT"]
[Termination "Conradical12 won by resignation"]

1. e4 {[%clk 0:04:58.1]} 1... c5 {[%clk 0:04:59.1]} 2. d4 {[%clk 0:04:54.9]}
2... cxd4 {[%clk 0:04:54.9]} 3. c3 {[%clk 0:04:53.9]} 3... dxc3 {[%clk
0:04:53.7]} 4. Nxc3 {[%clk 0:04:53.5]} 4... Nc6 {[%clk 0:04:52.6]} 5. f4 {[%clk
0:04:50.7]} 5... d6 {[%clk 0:04:51.4]} 6. Bc4 {[%clk 0:04:50.1]} 6... e6 {[%clk
0:04:38.1]} 7. Nf3 {[%clk 0:04:48.7]} 7... Nf6 {[%clk 0:04:37.3]} 8. O-O {[%clk
0:04:46.7]} 8... Be7 {[%clk 0:04:36.1]} 9. Be3 {[%clk 0:04:38.2]} 9... O-O
{[%clk 0:04:35.1]} 10. h3 {[%clk 0:04:37.2]} 10... Nh5 {[%clk 0:04:32.6]} 11.
Qc2 {[%clk 0:04:32.1]} 11... Bd7 {[%clk 0:04:29.4]} 12. Kh2 {[%clk 0:04:30]}
12... Rc8 {[%clk 0:04:27]} 13. Rad1 {[%clk 0:04:27.1]} 13... Nb4 {[%clk
0:04:20.6]} 14. Qb3 {[%clk 0:04:23.8]} 14... a5 {[%clk 0:04:19.2]} 15. a3 {[%clk
0:04:22]} 15... d5 {[%clk 0:04:13.9]} 16. exd5 {[%clk 0:04:18.9]} 16... exd5
{[%clk 0:04:13]} 17. Nxd5 {[%clk 0:04:17.8]} 17... Nxd5 {[%clk 0:04:10.9]} 18.
Bxd5 {[%clk 0:04:14.9]} 18... b6 {[%clk 0:04:05.4]} 19. Bxb6 {[%clk 0:04:08.7]}
19... Qe8 {[%clk 0:04:03.2]} 20. Qd3 {[%clk 0:04:00]} 20... Nxf4 {[%clk
0:03:59.3]} 21. Bxf7+ {[%clk 0:03:51]} 21... Qxf7 {[%clk 0:03:57.2]} 22. Qxd7
{[%clk 0:03:47.2]} 22... Ne2 {[%clk 0:03:51.5]} 23. Ne5 {[%clk 0:03:28]} 23...
Qb3 {[%clk 0:03:34.1]} 24. Qxe7 {[%clk 0:03:09.7]} 24... Qg3+ {[%clk 0:03:24.8]}
25. Kh1 {[%clk 0:03:07.7]} 25... Rfe8 {[%clk 0:03:20.2]} 26. Qf7+ {[%clk
0:02:54]} 26... Kh8 {[%clk 0:03:19.3]} 27. Rd8 {[%clk 0:02:46.3]} 27... Rcxd8
{[%clk 0:03:17.2]} 28. Bxd8 {[%clk 0:02:43.8]} 28... Qxe5 {[%clk 0:03:16.1]} 29.
Qf8+ {[%clk 0:02:41.7]} 1-0

[Event "Live Chess"]
[Site "Chess.com"]
[Date "2023.05.20"]
[Round "-"]
[White "gmnorfolk"]
[Black "LanceMaster23"]
[Result "0-1"]
[WhiteElo "2022"]
[BlackElo "1868"]
[TimeControl "300"]
[EndTime "12:11:24 PDT"]
[Termination "LanceMaster23 won by resignation"]

1. d4 {[%clk 0:04:57.9]} 1... Nf6 {[%clk 0:04:59.5]} 2. c4 {[%clk 0:04:56.2]}
2... e6 {[%clk 0:04:58.7]} 3. Nc3 {[%clk 0:04:55.6]} 3... Bb4 {[%clk 0:04:58.2]}
4. e3 {[%clk 0:04:54.9]} 4... c5 {[%clk 0:04:57.9]} 5. Bd3 {[%clk 0:04:53.4]}
5... Qa5 {[%clk 0:04:55.6]} 6. Ne2 {[%clk 0:04:50.6]} 6... cxd4 {[%clk
0:04:54.9]} 7. exd4 {[%clk 0:04:48.9]} 7... d5 {[%clk 0:04:54.2]} 8. O-O {[%clk
0:04:47.2]} 8... O-O {[%clk 0:04:51.3]} 9. cxd5 {[%clk 0:04:45.7]} 9... exd5
{[%clk 0:04:50.2]} 10. a3 {[%clk 0:04:44.5]} 10... Be6 {[%clk 0:04:33.8]} 11. h3
{[%clk 0:04:22.9]} 11... Nc6 {[%clk 0:04:27.2]} 12. f4 {[%clk 0:04:11.8]} 12...
Bd6 {[%clk 0:03:51]} 13. f5 {[%clk 0:04:01.5]} 13... Bd7 {[%clk 0:03:50.3]} 14.
g4 {[%clk 0:04:00]} 14... Rfe8 {[%clk 0:03:47.5]} 15. b4 {[%clk 0:03:52.6]}
15... Qb6 {[%clk 0:03:45.5]} 16. g5 {[%clk 0:03:42.8]} 16... Nxd4 {[%clk
0:03:43.3]} 17. Kh1 {[%clk 0:03:40.6]} 17... Nxe2 {[%clk 0:03:29.5]} 18. Nxe2
{[%clk 0:03:24.8]} 18... Ne4 {[%clk 0:03:16]} 19. Bb2 {[%clk 0:03:18.4]} 19...
Nf2+ {[%clk 0:03:10.5]} 20. Rxf2 {[%clk 0:03:09.7]} 20... Qxf2 {[%clk
0:03:10.4]} 21. Qg1 {[%clk 0:03:08.1]} 21... Qf3+ {[%clk 0:02:57.9]} 22. Qg2
{[%clk 0:03:03.5]} 22... Qxd3 {[%clk 0:02:57.4]} 23. g6 {[%clk 0:03:01.6]} 23...
hxg6 {[%clk 0:02:38.9]} 24. fxg6 {[%clk 0:02:59.3]} 24... Qxg6 {[%clk
0:02:34.4]} 0-1

[Event "Live Chess"]
[Site "Chess.com"]
[Date "2023.05.20"]
[Round "-"]
[White "mliszewski"]
[Black "Ninifu"]
[Result "0-1"]
[WhiteElo "1880"]
[BlackElo "2004"]
[TimeControl "300"]
[EndTime "12:11:33 PDT"]
[Termination "Ninifu won by checkmate"]

1. d4 {[%clk 0:04:58.6]} 1... Nf6 {[%clk 0:04:58.6]} 2. Bg5 {[%clk 0:04:57.6]}
2... c5 {[%clk 0:04:56.6]} 3. d5 {[%clk 0:04:55.9]} 3... Qb6 {[%clk 0:04:55.1]}
4. Nc3 {[%clk 0:04:54.7]} 4... Qxb2 {[%clk 0:04:47.3]} 5. Bd2 {[%clk 0:04:53.8]}
5... Qb6 {[%clk 0:04:43.8]} 6. e4 {[%clk 0:04:53]} 6... e5 {[%clk 0:04:43]} 7.
f4 {[%clk 0:04:50]} 7... d6 {[%clk 0:04:42]} 8. Nf3 {[%clk 0:04:48.7]} 8... Nbd7
{[%clk 0:04:34.9]} 9. Rb1 {[%clk 0:04:28.8]} 9... Qc7 {[%clk 0:04:28.8]} 10.
fxe5 {[%clk 0:04:19.1]} 10... dxe5 {[%clk 0:04:23.4]} 11. Nb5 {[%clk 0:04:15.7]}
11... Qb8 {[%clk 0:04:17.8]} 12. Ba5 {[%clk 0:04:08.8]} 12... b6 {[%clk
0:04:08.6]} 13. d6 {[%clk 0:04:02.6]} 13... Nxe4 {[%clk 0:03:39.7]} 14. Nc7+
{[%clk 0:03:59.5]} 14... Kd8 {[%clk 0:03:39.2]} 15. Nxa8 {[%clk 0:03:56.5]}
15... Qxa8 {[%clk 0:03:37.6]} 16. Bd2 {[%clk 0:03:32.6]} 16... Bxd6 {[%clk
0:03:27.8]} 17. Bd3 {[%clk 0:03:29.7]} 17... Nef6 {[%clk 0:03:11.7]} 18. Bf5
{[%clk 0:03:13.7]} 18... Kc7 {[%clk 0:03:03.3]} 19. O-O {[%clk 0:03:11.1]} 19...
h6 {[%clk 0:02:44.7]} 20. Re1 {[%clk 0:02:48.1]} 20... Re8 {[%clk 0:02:42.8]}
21. Bxd7 {[%clk 0:02:25.7]} 21... Bxd7 {[%clk 0:02:36]} 22. Rf1 {[%clk
0:02:22.8]} 22... e4 {[%clk 0:02:19.2]} 23. Nh4 {[%clk 0:02:20]} 23... e3 {[%clk
0:02:15.4]} 24. Bxe3 {[%clk 0:02:01.5]} 24... Rxe3 {[%clk 0:02:13.8]} 25. Qd2
{[%clk 0:02:01.2]} 25... Re8 {[%clk 0:01:27.5]} 26. Rbd1 {[%clk 0:01:58]} 26...
Qc6 {[%clk 0:01:26.4]} 27. c4 {[%clk 0:01:44.7]} 27... Bg4 {[%clk 0:01:22.9]}
28. Rde1 {[%clk 0:01:37.6]} 28... Rxe1 {[%clk 0:00:48.8]} 29. Rxe1 {[%clk
0:01:36.1]} 29... g5 {[%clk 0:00:41.7]} 30. Qf2 {[%clk 0:01:28.7]} 30... Ne4
{[%clk 0:00:36.7]} 31. Qxf7+ {[%clk 0:01:25.9]} 31... Bd7 {[%clk 0:00:33.2]} 32.
Nf3 {[%clk 0:01:17.4]} 32... g4 {[%clk 0:00:22.1]} 33. Nh4 {[%clk 0:01:09.2]}
33... Kb7 {[%clk 0:00:19.4]} 34. Qh7 {[%clk 0:00:55.8]} 34... Ng5 {[%clk
0:00:14.5]} 35. Qxh6 {[%clk 0:00:49]} 35... Bxh2+ {[%clk 0:00:11.7]} 36. Kxh2
{[%clk 0:00:43.6]} 36... Qxh6 {[%clk 0:00:11]} 37. g3 {[%clk 0:00:41.1]} 37...
Nf3+ {[%clk 0:00:10.2]} 38. Kg2 {[%clk 0:00:39.8]} 38... Nxe1+ {[%clk
0:00:09.5]} 39. Kf2 {[%clk 0:00:38.9]} 39... Qd2+ {[%clk 0:00:08.4]} 40. Kf1
{[%clk 0:00:36.7]} 40... Be6 {[%clk 0:00:06.8]} 41. Kg1 {[%clk 0:00:31.8]} 41...
Qe2 {[%clk 0:00:04.8]} 42. Kh1 {[%clk 0:00:24.9]} 42... Nf3 {[%clk 0:00:03.8]}
43. Ng2 {[%clk 0:00:21.1]} 43... Qf1# {[%clk 0:00:02.1]} 0-1

[Event "Live Chess"]
[Site "Chess.com"]
[Date "2023.05.20"]
[Round "-"]
[White "raminguy"]
[Black "luckywookie"]
[Result "1-0"]
[WhiteElo "1997"]
[BlackElo "744"]
[TimeControl "300"]
[EndTime "12:11:40 PDT"]
[Termination "raminguy won by checkmate"]

1. d4 {[%clk 0:04:59.5]} 1... d5 {[%clk 0:04:58.3]} 2. Nc3 {[%clk 0:04:59.2]}
2... c6 {[%clk 0:04:57.2]} 3. Bf4 {[%clk 0:04:58.6]} 3... Bf5 {[%clk 0:04:50.1]}
4. e3 {[%clk 0:04:57]} 4... Nd7 {[%clk 0:04:48.9]} 5. h4 {[%clk 0:04:55.9]} 5...
e6 {[%clk 0:04:47.1]} 6. g4 {[%clk 0:04:54.9]} 6... Be4 {[%clk 0:04:26.6]} 7. f3
{[%clk 0:04:52.3]} 7... e5 {[%clk 0:04:24.2]} 8. dxe5 {[%clk 0:04:48.1]} 8...
Bb4 {[%clk 0:04:10.2]} 9. fxe4 {[%clk 0:04:45.7]} 9... Bxc3+ {[%clk 0:04:08.3]}
10. bxc3 {[%clk 0:04:42.8]} 10... dxe4 {[%clk 0:04:07.3]} 11. Bg2 {[%clk
0:04:40.4]} 11... Qa5 {[%clk 0:03:54.5]} 12. Ne2 {[%clk 0:04:38.6]} 12... b5
{[%clk 0:03:51.7]} 13. Bxe4 {[%clk 0:04:36]} 13... O-O-O {[%clk 0:03:50]} 14.
O-O {[%clk 0:04:24.2]} 14... Nc5 {[%clk 0:03:37.6]} 15. Bf5+ {[%clk 0:04:23.1]}
15... Kc7 {[%clk 0:03:30.3]} 16. e6+ {[%clk 0:04:22]} 16... Kb7 {[%clk
0:03:19.7]} 17. exf7 {[%clk 0:03:35.3]} 17... Nf6 {[%clk 0:03:01]} 18. Qb1
{[%clk 0:03:17.6]} 18... Rhf8 {[%clk 0:02:43.2]} 19. c4 {[%clk 0:03:06.3]} 19...
a6 {[%clk 0:02:40.1]} 20. cxb5 {[%clk 0:03:04.2]} 20... axb5 {[%clk 0:02:34.6]}
21. c4 {[%clk 0:03:03]} 21... Rxf7 {[%clk 0:02:13.1]} 22. cxb5 {[%clk
0:03:01.6]} 22... cxb5 {[%clk 0:02:03.2]} 23. Nd4 {[%clk 0:02:50.2]} 23... Nd5
{[%clk 0:01:16.4]} 24. Nxb5 {[%clk 0:02:45.9]} 24... Kc6 {[%clk 0:01:04.8]} 25.
Nd4# {[%clk 0:02:41.8]} 1-0

[Event "Live Chess"]
[Site "Chess.com"]
[Date "2023.05.20"]
[Round "-"]
[White "CheckThis4"]
[Black "Ocelot32"]
[Result "1-0"]
[WhiteElo "2554"]
[BlackElo "1397"]
[TimeControl "300"]
[EndTime "12:11:48 PDT"]
[Termination "CheckThis4 won by resignation"]

1. d4 {[%clk 0:04:57.1]} 1... d5 {[%clk 0:04:58.3]} 2. Bg5 {[%clk 0:04:55.3]}
2... Nf6 {[%clk 0:04:55.9]} 3. e3 {[%clk 0:04:53.1]} 3... e6 {[%clk 0:04:54.4]}
4. Nf3 {[%clk 0:04:50]} 4... Nbd7 {[%clk 0:04:53.3]} 5. c4 {[%clk 0:04:43.9]}
5... c6 {[%clk 0:04:51.5]} 6. Nc3 {[%clk 0:04:41.8]} 6... Be7 {[%clk 0:04:50.5]}
7. Bd3 {[%clk 0:04:38.2]} 7... O-O {[%clk 0:04:48.8]} 8. O-O {[%clk 0:04:36.6]}
8... dxc4 {[%clk 0:04:47.5]} 9. Bxc4 {[%clk 0:04:35.4]} 9... Nd5 {[%clk
0:04:46.6]} 10. Bxe7 {[%clk 0:04:30.3]} 10... Qxe7 {[%clk 0:04:43.2]} 11. Rc1
{[%clk 0:04:26]} 11... N7f6 {[%clk 0:04:39.8]} 12. Ne5 {[%clk 0:04:19.5]} 12...
Nxc3 {[%clk 0:04:33.8]} 13. bxc3 {[%clk 0:04:15.7]} 13... Nd5 {[%clk 0:04:32.2]}
14. Bd3 {[%clk 0:04:11]} 14... f6 {[%clk 0:04:23.4]} 15. Nf3 {[%clk 0:04:05.2]}
15... Re8 {[%clk 0:04:21.5]} 16. c4 {[%clk 0:04:03.4]} 16... Nb4 {[%clk
0:04:15.4]} 17. Bb1 {[%clk 0:04:00.1]} 17... e5 {[%clk 0:04:13]} 18. Qb3 {[%clk
0:03:52.9]} 18... Na6 {[%clk 0:04:03.7]} 19. Qc2 {[%clk 0:03:31.8]} 19... e4
{[%clk 0:03:51.2]} 20. Nd2 {[%clk 0:03:30.8]} 20... Bf5 {[%clk 0:03:47.9]} 21.
Qb3 {[%clk 0:03:16]} 21... Kh8 {[%clk 0:03:39.8]} 22. f3 {[%clk 0:03:09.8]}
22... Be6 {[%clk 0:03:28.5]} 23. fxe4 {[%clk 0:02:59.8]} 23... Bf7 {[%clk
0:03:16.9]} 24. Qc2 {[%clk 0:02:36.6]} 24... Bg6 {[%clk 0:03:15.2]} 25. Qb2
{[%clk 0:02:32.9]} 25... Rab8 {[%clk 0:03:13.1]} 26. Rf3 {[%clk 0:02:28.2]}
26... Nc7 {[%clk 0:03:01.1]} 27. Rg3 {[%clk 0:02:25.4]} 27... Qf7 {[%clk
0:02:54.7]} 28. Rf1 {[%clk 0:02:22.4]} 28... Bh5 {[%clk 0:02:27.9]} 29. e5
{[%clk 0:02:18.9]} 29... Re6 {[%clk 0:02:19.7]} 30. Ne4 {[%clk 0:02:09.7]} 30...
Rf8 {[%clk 0:02:11.3]} 31. Ng5 {[%clk 0:01:59.1]} 31... Qe7 {[%clk 0:02:00.2]}
32. Nxh7 {[%clk 0:01:45.7]} 32... b6 {[%clk 0:01:56.9]} 33. Nxf8 {[%clk
0:01:43.1]} 33... Qxf8 {[%clk 0:01:55.8]} 34. Rh3 {[%clk 0:01:40.4]} 34... g6
{[%clk 0:01:33.9]} 35. Bxg6 {[%clk 0:01:37.2]} 35... Qg7 {[%clk 0:01:20.8]} 36.
Rxh5+ {[%clk 0:01:33.1]} 36... Kg8 {[%clk 0:01:18]} 37. Bh7+ {[%clk 0:01:31.2]}
37... Kf7 {[%clk 0:01:16.3]} 38. Bf5 {[%clk 0:01:29.8]} 38... fxe5 {[%clk
0:01:12.3]} 1-0

[Event "Live Chess"]
[Site "Chess.com"]
[Date "2023.05.20"]
[Round "-"]
[White "McSlash1"]
[Black "domrobson"]
[Result "1-0"]
[WhiteElo "2066"]
[BlackElo "1743"]
[TimeControl "300"]
[EndTime "12:11:49 PDT"]
[Termination "McSlash1 won by resignation"]

1. e4 {[%clk 0:04:58.6]} 1... e5 {[%clk 0:04:59.6]} 2. Nf3 {[%clk 0:04:57.6]}
2... Nc6 {[%clk 0:04:58.1]} 3. Bb5 {[%clk 0:04:57]} 3... a6 {[%clk 0:04:56.8]}
4. Ba4 {[%clk 0:04:55.9]} 4... Nf6 {[%clk 0:04:56.4]} 5. O-O {[%clk 0:04:55]}
5... Nxe4 {[%clk 0:04:56]} 6. Re1 {[%clk 0:04:53.1]} 6... Nc5 {[%clk 0:04:53.1]}
7. Bxc6 {[%clk 0:04:47]} 7... dxc6 {[%clk 0:04:53]} 8. Nxe5 {[%clk 0:04:46.2]}
8... Be7 {[%clk 0:04:52.7]} 9. d4 {[%clk 0:04:45.3]} 9... Ne6 {[%clk 0:04:52.3]}
10. c3 {[%clk 0:04:44.8]} 10... O-O {[%clk 0:04:51.1]} 11. Nd2 {[%clk
0:04:44.3]} 11... c5 {[%clk 0:04:50.5]} 12. Ndf3 {[%clk 0:04:42.4]} 12... cxd4
{[%clk 0:04:50.1]} 13. cxd4 {[%clk 0:04:42.3]} 13... c6 {[%clk 0:04:47.9]} 14.
Be3 {[%clk 0:04:38.5]} 14... Qd5 {[%clk 0:04:46.4]} 15. Nd3 {[%clk 0:04:33.6]}
15... Bd6 {[%clk 0:04:36.9]} 16. a3 {[%clk 0:04:23.6]} 16... Qh5 {[%clk
0:04:28.9]} 17. Nfe5 {[%clk 0:04:19.6]} 17... Rd8 {[%clk 0:04:25.3]} 18. Qxh5
{[%clk 0:04:16.6]} 1-0

[Event "Live Chess"]
[Site "Chess.com"]
[Date "2023.05.20"]
[Round "-"]
[White "Ayush_prahlad_Gupta"]
[Black "ReceptiveCamel"]
[Result "1-0"]
[WhiteElo "1794"]
[BlackElo "640"]
[TimeControl "300"]
[EndTime "12:11:51 PDT"]
[Termination "Ayush_prahlad_Gupta won by checkmate"]

1. e4 {[%clk 0:04:52.3]} 1... e5 {[%clk 0:04:59.4]} 2. Nc3 {[%clk 0:04:52.1]}
2... Nf6 {[%clk 0:04:54.1]} 3. Bc4 {[%clk 0:04:50.3]} 3... Bb4 {[%clk
0:04:50.5]} 4. a3 {[%clk 0:04:48.8]} 4... Bxc3 {[%clk 0:04:48.2]} 5. dxc3 {[%clk
0:04:48.7]} 5... Nxe4 {[%clk 0:04:46.8]} 6. Qh5 {[%clk 0:04:42.9]} 6... g6
{[%clk 0:04:44.3]} 7. Qxe5+ {[%clk 0:04:40.8]} 7... Qe7 {[%clk 0:04:39.4]} 8.
Qxh8+ {[%clk 0:04:38.8]} 8... Qf8 {[%clk 0:04:36.7]} 9. Qxf8+ {[%clk 0:04:32.7]}
9... Kxf8 {[%clk 0:04:34.5]} 10. Bh6+ {[%clk 0:04:32.6]} 10... Ke7 {[%clk
0:04:32.4]} 11. O-O-O {[%clk 0:04:30.2]} 11... Nxf2 {[%clk 0:04:28.6]} 12. Re1+
{[%clk 0:04:28.2]} 12... Kf6 {[%clk 0:04:23.7]} 13. Nh3 {[%clk 0:04:22.3]} 13...
Nxh1 {[%clk 0:04:21]} 14. Rf1+ {[%clk 0:04:18.5]} 14... Ke7 {[%clk 0:04:18]} 15.
Rxh1 {[%clk 0:04:08.3]} 15... d6 {[%clk 0:04:15.6]} 16. Re1+ {[%clk 0:04:03.7]}
16... Kf6 {[%clk 0:04:12.4]} 17. Rf1+ {[%clk 0:03:52.7]} 17... Bf5 {[%clk
0:04:06.7]} 18. g4 {[%clk 0:03:51.2]} 18... Nd7 {[%clk 0:03:59.2]} 19. gxf5
{[%clk 0:03:50]} 19... gxf5 {[%clk 0:03:54.8]} 20. Bd3 {[%clk 0:03:49.4]} 20...
Nc5 {[%clk 0:03:51.2]} 21. Rxf5+ {[%clk 0:03:47.6]} 21... Ke6 {[%clk 0:03:48.3]}
22. Ng5+ {[%clk 0:03:44.1]} 22... Ke7 {[%clk 0:03:46.1]} 23. Rxf7+ {[%clk
0:03:43.2]} 23... Ke8 {[%clk 0:03:42.3]} 24. Bxh7 {[%clk 0:03:41.7]} 24... Rd8
{[%clk 0:03:38]} 25. Bg6 {[%clk 0:03:40.4]} 25... Rd7 {[%clk 0:03:34.4]} 26.
Rh7+ {[%clk 0:03:36]} 26... Kd8 {[%clk 0:03:30.3]} 27. Rh8+ {[%clk 0:03:31.8]}
27... Ke7 {[%clk 0:03:27.6]} 28. Bg7 {[%clk 0:03:29.3]} 28... Nb3+ {[%clk
0:03:25]} 29. cxb3 {[%clk 0:03:27.8]} 29... a5 {[%clk 0:03:23.2]} 30. Re8#
{[%clk 0:03:26.8]} 1-0